fUSD/lending_fUSD_20250105
["ID","MTS","AMOUNT","RATE_DAILY","PERIOD"]
[347787831,1736107842594,-500.0,0.00010446,2]
[347787832,1736107842604,-500.0,0.00010446,2]
[347787833,1736107842614,-500.0,0.00010446,2]
[347787834,1736107842624,-154.3,0.00010446,2]
[347787835,1736107842633,-500.0,0.00010446,2]
[347787836,1736107842643,-500.0,0.00010446,2]
[347787837,1736107842653,-500.0,0.00010446,2]
[347787838,1736107842662,-500.0,0.00010446,2]
[347787839,1736107842672,-500.0,0.00010446,2]
[347787840,1736107842682,-500.0,0.00010446,2]
[347787841,1736107842692,-500.0,0.00010446,2]
[347787842,1736107842702,-500.0,0.00010446,2]
[347787843,1736107842712,-322.13,0.00010446,2]
[347787844,1736107842722,-500.0,0.00010446,2]
[347787845,1736107842731,-500.0,0.00010446,2]
[347787846,1736107842741,-500.0,0.00010446,2]
[347787847,1736107842751,-500.0,0.00010446,2]
[347787848,1736107842761,-500.0,0.00010446,2]
[347787849,1736107842771,-500.0,0.00010446,2]
[347787850,1736107842781,-500.0,0.00010446,2]
[347787851,1736107842790,-500.0,0.00010446,2]
[347787852,1736107842800,-500.0,0.00010446,2]
[347787853,1736107842810,-205.94,0.00010446,2]
[347787854,1736107842819,-500.0,0.00010446,2]
[347787855,1736107842829,-500.0,0.00010446,2]
[347787856,1736107842839,-500.0,0.00010446,2]
[347787857,1736107842848,-500.0,0.00010446,2]
[347787858,1736107842858,-500.0,0.00010446,2]
[347787859,1736107842867,-500.0,0.00010446,2]
[347787860,1736107842877,-500.0,0.00010446,2]
[347787861,1736107842886,-500.0,0.00010446,2]
[347787862,1736107842896,-433.68,0.00010446,2]
[347787863,1736107842906,-527.68,0.00010446,2]
[347787864,1736107842915,-500.0,0.00010446,2]
[347787865,1736107842924,-646.73,0.00010446,2]
[347787866,1736107842934,-500.0,0.00010446,2]
[347787867,1736107843111,-609.24,0.00010446,2]
[347787868,1736107843121,-500.0,0.00010446,2]
[347787869,1736107843131,-500.0,0.00010446,2]
[347787870,1736107843141,-188.0,0.00010446,2]
[347787871,1736107843150,-500.0,0.00010446,2]
[347787872,1736107843160,-500.0,0.00010446,2]
[347787873,1736107843169,-500.0,0.00010446,2]
[347787874,1736107843179,-475.66,0.00010446,2]
[347787875,1736107843189,-500.0,0.00010446,2]
[347787876,1736107843199,-500.0,0.00010446,2]
[347787877,1736107843209,-500.0,0.00010446,2]
[347787878,1736107843219,-500.0,0.00010446,2]
[347787879,1736107843228,-500.0,0.00010446,2]
[347787880,1736107843238,-282.36,0.00010446,2]
[347787881,1736107843247,-500.0,0.00010446,2]
[347787882,1736107843256,-500.0,0.00010446,2]
[347787883,1736107843266,-500.0,0.00010446,2]
[347787884,1736107843275,-500.0,0.00010446,2]
[347787885,1736107843285,-500.0,0.00010446,2]
[347787886,1736107843294,-500.0,0.00010446,2]
[347787887,1736107843304,-500.0,0.00010446,2]
[347787888,1736107843314,-500.0,0.00010446,2]
[347787889,1736107843323,-500.0,0.00010446,2]
[347787890,1736107843332,-500.0,0.00010446,2]
[347787891,1736107843341,-500.0,0.00010446,2]
[347787892,1736107843352,-500.0,0.00010446,2]
[347787893,1736107843362,-500.0,0.00010446,2]
[347787894,1736107843372,-500.0,0.00010446,2]
[347787895,1736107843382,-500.0,0.00010446,2]
[347787896,1736107843392,-500.0,0.00010446,2]
[347787897,1736107843401,-500.0,0.00010446,2]
[347787898,1736107843411,-500.0,0.00010446,2]
[347787899,1736107843421,-500.0,0.00010446,2]
[347787900,1736107843431,-500.0,0.00010446,2]
[347787901,1736107843440,-500.0,0.00010446,2]
[347787902,1736107843450,-500.0,0.00010446,2]
[347787903,1736107843460,-500.0,0.00010446,2]
[347787904,1736107843469,-500.0,0.00010446,2]
[347787905,1736107843479,-500.0,0.00010446,2]
[347787906,1736107843489,-430.45,0.00010446,2]
[347787907,1736107843499,-500.0,0.00010446,2]
[347787908,1736107843509,-500.0,0.00010446,2]
[347787909,1736107843519,-322.06,0.00010446,2]
[347787910,1736107843528,-500.0,0.00010446,2]
[347787911,1736107843539,-500.0,0.00010446,2]
[347787912,1736107843549,-500.0,0.00010446,2]
[347787913,1736107843558,-884.87,0.00010446,2]
[347787914,1736107843567,-500.0,0.00010446,2]
[347787915,1736107843576,-500.0,0.00010446,2]
[347787916,1736107843585,-500.0,0.00010446,2]
[347787917,1736107843595,-500.0,0.00010446,2]
[347787918,1736107843605,-500.0,0.00010446,2]
[347787919,1736107843615,-500.0,0.00010446,2]
[347787920,1736107843624,-500.0,0.00010446,2]
[347787921,1736107843634,-500.0,0.00010446,2]
[347787922,1736107843643,-500.0,0.00010446,2]
[347787923,1736107843654,-500.0,0.00010446,2]
[347787924,1736107843664,-637.18,0.00010446,2]
[347787925,1736107843674,-560.71,0.00010446,2]
[347787926,1736107843684,-500.0,0.00010446,2]
[347787927,1736107843693,-500.0,0.00010446,2]
[347787928,1736107843702,-500.0,0.00010446,2]
[347787929,1736107843712,-500.0,0.00010446,2]
[347787930,1736107843722,-500.0,0.00010446,2]
[347787931,1736107843733,-500.0,0.00010446,2]
[347787932,1736107843743,-500.0,0.00010446,2]
[347787933,1736107843753,-500.0,0.00010446,2]
[347787934,1736107843763,-1905.91,0.00010446,2]
[347787935,1736107843772,-500.0,0.00010446,2]
[347787936,1736107843782,-631.55,0.00010446,2]
[347787937,1736107843792,-500.0,0.00010446,2]
[347787938,1736107843802,-500.0,0.00010446,2]
[347787939,1736107843811,-500.0,0.00010446,2]
[347787940,1736107843821,-500.0,0.00010446,2]
[347787941,1736107843831,-500.0,0.00010446,2]
[347787942,1736107843840,-456.1,0.00010446,2]
[347787943,1736107843850,-500.0,0.00010446,2]
[347787944,1736107843860,-500.0,0.00010446,2]
[347787945,1736107843869,-500.0,0.00010446,2]
[347787946,1736107843880,-500.0,0.00010446,2]
[347787947,1736107843889,-500.0,0.00010446,2]
[347787948,1736107843899,-629.38,0.00010446,2]
[347787949,1736107843909,-537.63091869,0.00010446,2]
[347787950,1736107843919,-1313.11,0.00010446,2]
[347787951,1736107843929,-500.0,0.00010446,2]
[347787952,1736107843939,-500.0,0.00010446,2]
[347787953,1736107843948,-500.0,0.00010446,2]
[347787954,1736107843958,-500.0,0.00010446,2]
[347787955,1736107843968,-500.0,0.00010446,2]
[347787956,1736107843977,-500.0,0.00010446,2]
[347787957,1736107843987,-500.0,0.00010446,2]
[347787958,1736107843997,-500.0,0.00010446,2]
[347787959,1736107844007,-500.0,0.00010446,2]
[347787960,1736107844016,-500.0,0.00010446,2]
[347787961,1736107844025,-500.0,0.00010446,2]
[347787962,1736107844035,-500.0,0.00010446,2]
[347787963,1736107844044,-500.0,0.00010446,2]
[347787964,1736107844053,-500.0,0.00010446,2]
[347787965,1736107844063,-500.0,0.00010446,2]
[347787966,1736107844073,-500.0,0.00010446,2]
[347787967,1736107844082,-500.0,0.00010446,2]
[347787968,1736107844092,-500.0,0.00010446,2]
[347787969,1736107844102,-500.0,0.00010446,2]
[347787970,1736107844112,-500.0,0.00010446,2]
[347787971,1736107844121,-500.0,0.00010446,2]
[347787972,1736107844131,-862.94,0.00010446,2]
[347787973,1736107844141,-500.0,0.00010446,2]
[347787974,1736107844150,-500.0,0.00010446,2]
[347787975,1736107844160,-500.0,0.00010446,2]
[347787976,1736107844171,-500.0,0.00010446,2]
[347787977,1736107844182,-500.0,0.00010446,2]
[347787978,1736107844192,-500.0,0.00010446,2]
[347787979,1736107844202,-500.0,0.00010446,2]
[347787980,1736107844211,-500.0,0.00010446,2]
[347787981,1736107844219,-500.0,0.00010446,2]
[347787982,1736107844229,-500.0,0.00010446,2]
[347787983,1736107844239,-1294.03,0.00010446,2]
[347787984,1736107844248,-581.74,0.00010446,2]
[347787985,1736107844258,-613.09,0.00010446,2]
[347787986,1736107844267,-500.0,0.00010446,2]
[347787987,1736107844277,-500.0,0.00010446,2]
[347787988,1736107844287,-500.0,0.00010446,2]
[347787989,1736107844296,-500.0,0.00010446,2]
[347787990,1736107844306,-532.46,0.00010446,2]
[347787991,1736107844316,-500.0,0.00010446,2]
[347787992,1736107844325,-500.0,0.00010446,2]
[347787993,1736107844335,-500.0,0.00010446,2]
[347787994,1736107844348,-500.0,0.00010446,2]
[347787995,1736107844358,-540.7,0.00010446,2]
[347787996,1736107844367,-500.0,0.00010446,2]
[347787997,1736107844377,-500.0,0.00010446,2]
[347787998,1736107844387,-500.0,0.00010446,2]
[347787999,1736107844396,-500.0,0.00010446,2]
[347788000,1736107844406,-500.0,0.00010446,2]
[347788001,1736107844416,-500.0,0.00010446,2]
[347788002,1736107844426,-500.0,0.00010446,2]
[347788003,1736107844436,-500.0,0.00010446,2]
[347788004,1736107844446,-2730.11642868,0.00010479,2]
[347788005,1736107844455,-4607.84133287,0.00010524,2]
[347788006,1736107844464,-500.0,0.00010546,2]
[347788007,1736107844474,-555.04,0.00010546,2]
[347788008,1736107844483,-588.67,0.00010546,2]
[347788009,1736107844493,-500.0,0.00010546,2]
[347788010,1736107844502,-1433.58,0.00010546,2]
[347788011,1736107844512,-568.83,0.00010546,2]
[347788012,1736107844522,-1126.88,0.00010546,2]
[347788013,1736107844531,-583.26,0.00010546,2]
[347788014,1736107844540,-820.19,0.00010546,2]
[347788015,1736107844550,-864.2,0.00010546,2]
[347788016,1736107844560,-986.93,0.00010546,2]
[347788017,1736107844569,-500.0,0.00010546,2]
[347788018,1736107844579,-500.0,0.00010547,2]
[347788019,1736107844588,-500.0,0.00010547,2]
[347788020,1736107844597,-500.0,0.00010547,2]
[347788021,1736107844607,-500.0,0.00010547,2]
[347788022,1736107844616,-500.0,0.00010547,2]
[347788023,1736107844626,-660.89,0.00010547,2]
[347788024,1736107844635,-500.0,0.00010547,2]
[347788025,1736107844645,-500.0,0.00010547,2]
[347788026,1736107844654,-500.0,0.00010547,2]
[347788027,1736107844663,-775.75,0.00010547,2]
[347788028,1736107844674,-500.0,0.00010547,2]
[347788029,1736107844684,-628.39,0.00010547,2]
[347788030,1736107844694,-500.0,0.00010547,2]
[347788031,1736107844703,-1015.85,0.00010547,2]
[347788032,1736107844713,-500.0,0.00010547,2]
[347788033,1736107844722,-1159.49,0.00010547,2]
[347788034,1736107844732,-580.95,0.00010547,2]
[347788035,1736107844742,-2730.11642868,0.00010614,2]
[347788036,1736107844752,-500.0,0.00010632,2]
[347788037,1736107844761,-500.0,0.00010632,2]
[347788038,1736107844771,-220.56074528,0.00010632,2]
[347788039,1736107844780,-552.7,0.00010633,2]
[347788040,1736107844790,-907.58,0.00010633,2]
[347788041,1736107844800,-500.0,0.00010633,2]
[347788042,1736107844809,-820.39,0.00010633,2]
[347788043,1736107844819,-500.0,0.00010633,2]
[347788044,1736107844829,-500.0,0.00010633,2]
[347788045,1736107844838,-524.47,0.00010633,2]
[347788046,1736107844848,-528.71,0.00010633,2]
[347788047,1736107844857,-500.0,0.00010633,2]
[347788048,1736107844866,-367.828284,0.00010633,2]
[347788049,1736107844876,-1027.46,0.00010633,2]
[347788050,1736107844885,-471.542495,0.00010633,2]
[347788051,1736107844895,-500.0,0.00010633,2]
[347788052,1736107844904,-910.54,0.00010633,2]
[347788053,1736107844914,-500.0,0.00010633,2]
[347788054,1736107844923,-592.19,0.00010633,2]
[347788055,1736107844933,-500.0,0.00010633,2]
[347788056,1736107844943,-1138.14,0.00010633,2]
[347788057,1736107844952,-1090.41,0.00010633,2]
[347788058,1736107844962,-1045.62,0.00010633,2]
[347788059,1736107844971,-1501.47,0.0001066,2]
[347788060,1736107844981,-694.73,0.00010719,2]
[347788061,1736107844990,-500.0,0.00010719,2]
[347788062,1736107845000,-500.0,0.00010719,2]
[347788063,1736107845010,-834.3,0.00010719,2]
[347788064,1736107845019,-500.0,0.00010719,2]
[347788065,1736107845029,-594.37,0.00010719,2]
[347788066,1736107845038,-500.0,0.00010719,2]
[347788067,1736107845047,-1087.46,0.00010719,2]
[347788068,1736107845057,-500.0,0.00010719,2]
[347788069,1736107845067,-500.0,0.00010719,2]
[347788070,1736107845076,-1478.81,0.00010719,2]
[347788071,1736107845086,-500.0,0.00010719,2]
[347788072,1736107845095,-500.0,0.00010719,2]
[347788073,1736107845105,-500.0,0.00010719,2]
[347788074,1736107845114,-500.0,0.0001072,2]
[347788075,1736107845123,-500.0,0.0001072,2]
[347788076,1736107845133,-500.0,0.0001072,2]
[347788077,1736107845142,-500.0,0.0001072,2]
[347788078,1736107845152,-500.0,0.0001072,2]
[347788079,1736107845161,-500.0,0.0001072,2]
[347788080,1736107845170,-500.0,0.0001072,2]
[347788081,1736107845182,-500.0,0.0001072,2]
[347788082,1736107845191,-500.0,0.0001072,2]
[347788083,1736107845201,-500.0,0.0001072,2]
[347788084,1736107845210,-500.0,0.0001072,2]
[347788085,1736107845219,-164.16,0.0001072,2]
[347788086,1736107845229,-500.0,0.0001072,2]
[347788087,1736107845239,-372.73790517,0.0001072,2]
[347788088,1736107845249,-187.35,0.0001072,2]
[347788089,1736107845258,-500.0,0.0001072,2]
[347788090,1736107845267,-500.0,0.0001072,2]
[347788091,1736107845277,-500.0,0.0001072,2]
[347788092,1736107845286,-500.0,0.0001072,2]
[347788093,1736107845296,-500.0,0.0001072,2]
[347788094,1736107845306,-500.0,0.0001072,2]
[347788095,1736107845315,-253.03960389,0.0001072,2]
[347788096,1736107845361,-246.96039611,0.0001072,2]
[347788097,1736107845371,-500.0,0.0001072,2]
[347788098,1736107845380,-500.0,0.0001072,2]
[347788099,1736107845390,-500.0,0.0001072,2]
[347788100,1736107845399,-884.87,0.0001072,2]
[347788101,1736107845409,-500.0,0.0001072,2]
[347788102,1736107845420,-500.0,0.0001072,2]
[347788103,1736107845430,-560.71,0.0001072,2]
[347788104,1736107845439,-500.0,0.0001072,2]
[347788107,1736107845488,-500.0,0.0001072,2]
[347788108,1736107845498,-500.0,0.0001072,2]
[347788109,1736107845508,-500.0,0.0001072,2]
[347788110,1736107845517,-1425.5375616,0.0001072,2]
[347788111,1736107845536,-426.15,0.00010171,2]
[347788112,1736107845552,-73.85,0.00010171,2]
[347788113,1736107845561,-480.3724384,0.0001072,2]
[347788114,1736107845570,-426.22702181,0.0001072,2]
[347788115,1736107845582,-73.77297819,0.0001072,2]
[347788116,1736107845592,-500.0,0.0001072,2]
[347788117,1736107845601,-500.0,0.0001072,2]
[347788118,1736107845611,-1135.16086899,0.0001072,2]
[347788119,1736107845622,-177.94913101,0.0001072,2]
[347788120,1736107845631,-500.0,0.0001072,2]
[347788121,1736107845641,-8.29720293,0.0001072,2]
[347788122,1736107845652,-491.70279707,0.0001072,2]
[347788123,1736107845661,-500.0,0.0001072,2]
[347788124,1736107845670,-500.0,0.0001072,2]
[347788125,1736107845682,-500.0,0.0001072,2]
[347788126,1736107845692,-500.0,0.0001072,2]
[347788127,1736107845703,-500.0,0.0001072,2]
[347788128,1736107845713,-500.0,0.0001072,2]
[347788129,1736107845723,-500.0,0.0001072,2]
[347788130,1736107845734,-862.94,0.0001072,2]
[347788131,1736107845743,-634.92354943,0.0001072,2]
[347788132,1736107845752,-500.0,0.0001072,2]
[347788133,1736107845762,-500.0,0.0001072,2]
[347788134,1736107845772,-500.0,0.0001072,2]
[347788135,1736107845781,-1294.03,0.0001072,2]
[347788136,1736107845790,-500.0,0.0001072,2]
[347788137,1736107845800,-500.0,0.0001072,2]
[347788138,1736107845810,-532.46,0.0001072,2]
[347788140,1736107845819,-500.0,0.0001072,2]
[347788142,1736107845829,-266.5262798,0.0001072,2]
[347788144,1736107845838,-150.0,0.00010739,2]
[347788146,1736107845848,-204.92,0.00010739,2]
[347788148,1736107845857,-199.236,0.00010739,2]
[347788150,1736107845866,-154.144,0.00010739,2]
[347788152,1736107845875,-2730.11642868,0.00010748,2]
[347788154,1736107845885,-500.0,0.0001082,2]
[347788156,1736107845894,-555.04,0.0001082,2]
[347788158,1736107845903,-588.67,0.0001082,2]
[347788160,1736107845913,-500.0,0.0001082,2]
[347788161,1736107845922,-1433.58,0.0001082,2]
[347788164,1736107845932,-568.83,0.0001082,2]
[347788165,1736107845941,-1126.88,0.0001082,2]
[347788168,1736107845952,-583.26,0.0001082,2]
[347788170,1736107845962,-820.19,0.0001082,2]
[347788171,1736107845971,-864.2,0.0001082,2]
[347788174,1736107845980,-986.93,0.0001082,2]
[347788176,1736107845990,-500.0,0.0001082,2]
[347788178,1736107846000,-500.0,0.00010821,2]
[347788179,1736107846009,-500.0,0.00010821,2]
[347788182,1736107846019,-500.0,0.00010821,2]
[347788183,1736107846029,-500.0,0.00010821,2]
[347788186,1736107846038,-266.13,0.00010821,2]
[347788187,1736107846049,-660.89,0.00010821,2]
[347788190,1736107846058,-195.3,0.00010821,2]
[347788191,1736107846067,-500.0,0.00010821,2]
[347788193,1736107846076,-500.0,0.00010821,2]
[347788195,1736107846085,-775.75,0.00010821,2]
[347788197,1736107846094,-500.0,0.00010821,2]
[347788199,1736107846103,-628.39,0.00010821,2]
[347788201,1736107846112,-500.0,0.00010821,2]
[347788203,1736107846121,-1015.85,0.00010821,2]
[347788205,1736107846130,-500.0,0.00010821,2]
[347788207,1736107846140,-1159.49,0.00010821,2]
[347788209,1736107846149,-580.95,0.00010821,2]
[347788211,1736107846158,-215.0,0.00010854,2]
[347788213,1736107846167,-500.0,0.0001086,2]
[347788215,1736107846178,-2730.11642868,0.00010883,2]
[347788217,1736107846187,-500.0,0.00010892,2]
[347788219,1736107846197,-603.0864,0.00010895,2]
[347788221,1736107846207,-552.7,0.00010907,2]
[347788223,1736107846216,-907.58,0.00010907,2]
[347788225,1736107846225,-500.0,0.00010907,2]
[347788227,1736107846234,-820.39,0.00010907,2]
[347788229,1736107846244,-500.0,0.00010907,2]
[347788231,1736107846253,-500.0,0.00010907,2]
[347788233,1736107846262,-524.47,0.00010907,2]
[347788235,1736107846271,-528.71,0.00010907,2]
[347788237,1736107846279,-500.0,0.00010907,2]
[347788239,1736107846288,-367.828284,0.00010907,2]
[347788241,1736107846297,-1027.46,0.00010907,2]
[347788243,1736107846307,-471.542495,0.00010907,2]
[347788245,1736107846316,-500.0,0.00010907,2]
[347788247,1736107846326,-910.54,0.00010907,2]
[347788249,1736107846336,-373.7553071,0.00010907,2]
[347788251,1736107846348,-592.19,0.00010907,2]
[347788253,1736107846357,-500.0,0.00010907,2]
[347788255,1736107846367,-1138.14,0.00010907,2]
[347788257,1736107846377,-1090.41,0.00010907,2]
[347788259,1736107846388,-1045.62,0.00010907,2]
[347788260,1736107846397,-150.0,0.00010959,2]
[347788261,1736107846405,-1635.224,0.00010969,2]
[347788262,1736107846414,-1267.0,0.00010969,2]
[347788263,1736107846423,-150.0,0.00010969,2]
[347788264,1736107846432,-566.0,0.00010969,2]
[347788265,1736107846441,-634.0,0.00010969,2]
[347788266,1736107846450,-1858.0,0.00010969,2]
[347788267,1736107846458,-1256.0,0.00010969,2]
[347788268,1736107846467,-918.0,0.00010969,2]
[347788269,1736107846476,-3773.0,0.00010969,2]
[347788270,1736107846485,-819.0,0.00010969,2]
[347788272,1736107846494,-537.0,0.00010969,2]
[347788274,1736107846503,-3232.58818298,0.00010969,2]
[347788276,1736107846516,-489.41181702,0.00010969,2]
[347788278,1736107846525,-3893.0,0.00010969,2]
[347788280,1736107846535,-150.0,0.00010969,2]
[347788282,1736107846544,-1173.0,0.00010969,2]
[347788284,1736107846553,-9616.0,0.00010969,2]
[347788286,1736107846562,-400.0,0.00010986,2]
[347788288,1736107846571,-694.73,0.00010993,2]
[347788290,1736107846581,-500.0,0.00010993,2]
[347788292,1736107846590,-500.0,0.00010993,2]
[347788294,1736107846599,-834.3,0.00010993,2]
[347788296,1736107846608,-500.0,0.00010993,2]
[347788298,1736107846617,-594.37,0.00010993,2]
[347788300,1736107846626,-500.0,0.00010993,2]
[347788302,1736107846635,-1087.46,0.00010993,2]
[347788304,1736107846644,-500.0,0.00010993,2]
[347788306,1736107846653,-500.0,0.00010993,2]
[347788308,1736107846662,-1478.81,0.00010993,2]
[347788310,1736107846671,-500.0,0.00010993,2]
[347788312,1736107846682,-500.0,0.00010993,2]
[347788314,1736107846691,-500.0,0.00010993,2]
[347788316,1736107846699,-500.0,0.00010994,2]
[347788318,1736107846709,-500.0,0.00010994,2]
[347788320,1736107846718,-201.71830095,0.00010994,2]
[347788322,1736107846727,-500.0,0.00010994,2]
[347788324,1736107846736,-500.0,0.00010994,2]
[347788326,1736107846745,-500.0,0.00010994,2]
[347788328,1736107846755,-290.5,0.00010994,2]
[347788330,1736107846764,-500.0,0.00010994,2]
[347788332,1736107846773,-500.0,0.00010994,2]
[347788334,1736107846781,-500.0,0.00010994,2]
[347788336,1736107846792,-500.0,0.00010994,2]
[347788338,1736107846801,-500.0,0.00010994,2]
[347788340,1736107846811,-500.0,0.00010994,2]
[347788342,1736107846820,-392.69494307,0.00010994,2]
[347788344,1736107846829,-364.85675864,0.00010994,2]
[347788346,1736107846838,-884.87,0.00010994,2]
[347788348,1736107846847,-560.71,0.00010994,2]
[347788350,1736107846857,-500.0,0.00010994,2]
[347788352,1736107846866,-500.0,0.00010994,2]
[347788354,1736107846875,-1905.91,0.00010994,2]
[347788356,1736107846885,-500.0,0.00010994,2]
[347788358,1736107846894,-500.0,0.00010994,2]
[347788360,1736107846903,-500.0,0.00010994,2]
[347788362,1736107846913,-1313.11,0.00010994,2]
[347788364,1736107846922,-500.0,0.00010994,2]
[347788366,1736107846932,-500.0,0.00010994,2]
[347788368,1736107846942,-550.86,0.00010994,2]
[347788370,1736107846951,-500.0,0.00010994,2]
[347788372,1736107846961,-500.0,0.00010994,2]
[347788374,1736107846970,-500.0,0.00010994,2]
[347788376,1736107846979,-862.94,0.00010994,2]
[347788378,1736107846988,-500.0,0.00010994,2]
[347788380,1736107846997,-500.0,0.00010994,2]
[347788382,1736107847006,-1294.03,0.00010994,2]
[347788384,1736107847015,-500.0,0.00010994,2]
[347788386,1736107847025,-500.0,0.00010994,2]
[347788388,1736107847033,-532.46,0.00010994,2]
[347788390,1736107847043,-500.0,0.00010994,2]
[347788392,1736107847052,-10833.43998032,0.00011,2]
[347788398,1736107847191,-500.0,0.00010171,2]
[347788399,1736107847201,-12226.76482216,0.00011,2]
[347788400,1736107847212,-401.0,0.00011,2]
[347788401,1736107847223,-1036.6837627,0.00011,2]
[347788402,1736107847234,-523.34667278,0.00011,2]
[347788403,1736107847248,-6766.8835218,0.00011,2]
[347788404,1736107847260,-375.0,0.00011,2]
[347788405,1736107847271,-1115.52866538,0.00011,2]
[347788406,1736107847283,-880.29807507,0.00011,2]
[347788407,1736107847294,-931.13278959,0.00011,2]
[347788408,1736107847305,-21467.4066146,0.00011,2]
[347788409,1736107847314,-177.0,0.00011,2]
[347788410,1736107847324,-550.0,0.00011,2]
[347788411,1736107847333,-2730.11642868,0.00011017,2]
[347788412,1736107847347,-6320.66940128,0.00011034,2]
[347788413,1736107847355,-150.0,0.00011047,2]
[347788414,1736107847364,-150.0,0.00011047,2]
[347788415,1736107847373,-150.0,0.00011047,2]
[347788416,1736107847384,-152.31,0.00011094,2]
[347788417,1736107847394,-1528.59,0.00011094,2]
[347788418,1736107847403,-500.0,0.00011094,2]
[347788419,1736107847412,-555.04,0.00011094,2]
[347788420,1736107847422,-588.67,0.00011094,2]
[347788421,1736107847432,-500.0,0.00011094,2]
[347788422,1736107847441,-1433.58,0.00011094,2]
[347788423,1736107847451,-568.83,0.00011094,2]
[347788424,1736107847461,-1126.88,0.00011094,2]
[347788425,1736107847470,-583.26,0.00011094,2]
[347788426,1736107847479,-820.19,0.00011094,2]
[347788427,1736107847488,-864.2,0.00011094,2]
[347788428,1736107847498,-986.93,0.00011094,2]
[347788429,1736107847507,-500.0,0.00011094,2]
[347788430,1736107847516,-500.0,0.00011095,2]
[347788431,1736107847525,-500.0,0.00011095,2]
[347788432,1736107847534,-551.98,0.00011095,2]
[347788433,1736107847543,-500.0,0.00011095,2]
[347788434,1736107847553,-660.89,0.00011095,2]
[347788435,1736107847562,-500.0,0.00011095,2]
[347788436,1736107847572,-421.5615706,0.00011095,2]
[347788437,1736107847582,-775.75,0.00011095,2]
[347788438,1736107847591,-500.0,0.00011095,2]
[347788439,1736107847600,-628.39,0.00011095,2]
[347788440,1736107847610,-500.0,0.00011095,2]
[347788441,1736107847619,-1015.85,0.00011095,2]
[347788442,1736107847629,-500.0,0.00011095,2]
[347788443,1736107847638,-1159.49,0.00011095,2]
[347788444,1736107847647,-580.95,0.00011095,2]
[347788445,1736107847656,-150.89,0.0001111,2]
[347788446,1736107847665,-90650.3117,0.00011124,2]
[347788447,1736107847674,-150.0,0.00011134,2]
[347788448,1736107847685,-2730.11642868,0.00011152,2]
[347788449,1736107847694,-8201.26,0.00011159,2]
[347788450,1736107847703,-500.0,0.00011166,2]
[347788451,1736107847712,-552.7,0.00011181,2]
[347788452,1736107847721,-907.58,0.00011181,2]
[347788453,1736107847730,-500.0,0.00011181,2]
[347788454,1736107847739,-820.39,0.00011181,2]
[347788455,1736107847748,-500.0,0.00011181,2]
[347788456,1736107847757,-500.0,0.00011181,2]
[347788457,1736107847766,-524.47,0.00011181,2]
[347788458,1736107847775,-528.71,0.00011181,2]